fUSD/lending_fUSD_20251122
["ID","MTS","AMOUNT","RATE_DAILY","PERIOD"]
[394628648,1763795478275,-280.02514269,0.00017316,2]
[394628649,1763795478286,-500.0,0.00017316,2]
[394628650,1763795478296,-855.53,0.00017316,2]
[394628651,1763795478307,-810.8,0.00017316,2]
[394628652,1763795478317,-535.7,0.00017316,2]
[394628653,1763795478327,-799.75,0.00017316,2]
[394628654,1763795478337,-500.0,0.00017316,2]
[394628655,1763795478347,-532.93,0.00017316,2]
[394628656,1763795478357,-500.0,0.00017316,2]
[394628657,1763795478367,-514.70853821,0.00017316,2]
[394628658,1763795478378,-853.67,0.00017316,2]
[394628659,1763795478388,-500.0,0.00017316,2]
[394628660,1763795478398,-500.0,0.00017316,2]
[394628661,1763795478408,-500.0,0.00017316,2]
[394628662,1763795478419,-500.0,0.00017316,2]
[394628663,1763795478430,-500.0,0.00017316,2]
[394628664,1763795478440,-500.0,0.00017316,2]
[394628665,1763795478451,-638.37495109,0.00017316,2]
[394628666,1763795478460,-500.0,0.00017316,2]
[394628667,1763795478471,-971.94,0.00017316,2]
[394628668,1763795478482,-500.0,0.00017316,2]
[394628669,1763795478492,-500.0,0.00017316,2]
[394628670,1763795478502,-821.53,0.00017316,2]
[394628671,1763795478512,-818.36,0.00017316,2]
[394628672,1763795478523,-1074.73,0.00017316,2]
[394628673,1763795478533,-500.0,0.00017316,2]
[394628674,1763795478544,-500.0,0.00017316,2]
[394628675,1763795478554,-1035.77,0.00017316,2]
[394628676,1763795478564,-1218.66,0.00017316,2]
[394628677,1763795478575,-500.0,0.00017316,2]
[394628678,1763795478585,-616.89,0.00017316,2]
[394628679,1763795478595,-500.0,0.00017316,2]
[394628680,1763795478605,-666.17,0.00017316,2]
[394628681,1763795478615,-1022.43,0.00017316,2]
[394628682,1763795478626,-500.0,0.00017316,2]
[394628683,1763795478636,-1113.68,0.00017316,2]
[394628684,1763795478646,-500.0,0.00017316,2]
[394628685,1763795478656,-500.0,0.00017316,2]
[394628686,1763795478666,-964.69,0.00017316,2]
[394628687,1763795478676,-500.0,0.00017316,2]
[394628688,1763795478686,-500.0,0.00017316,2]
[394628689,1763795478696,-500.0,0.00017316,2]
[394628690,1763795478706,-500.0,0.00017316,2]
[394628691,1763795478717,-500.0,0.00017316,2]
[394628692,1763795478729,-500.0,0.00017316,2]
[394628693,1763795478740,-892.46,0.00017316,2]
[394628694,1763795478750,-500.0,0.00017316,2]
[394628695,1763795478760,-500.0,0.00017316,2]
[394628696,1763795478771,-528.27,0.00017316,2]
[394628697,1763795478782,-877.96,0.00017316,2]
[394628698,1763795478792,-774.78,0.00017316,2]
[394628699,1763795478802,-500.0,0.00017316,2]
[394628700,1763795478812,-500.0,0.00017316,2]
[394628701,1763795478823,-500.0,0.00017316,2]
[394628702,1763795478833,-500.0,0.00017316,2]
[394628703,1763795478843,-500.0,0.00017316,2]
[394628704,1763795478853,-500.0,0.00017316,2]
[394628705,1763795478863,-500.0,0.00017316,2]
[394628706,1763795478872,-500.0,0.00017316,2]
[394628707,1763795478882,-500.0,0.00017316,2]
[394628708,1763795478892,-914.75,0.00017316,2]
[394628709,1763795478902,-500.0,0.00017316,2]
[394628710,1763795478913,-801.13,0.00017316,2]
[394628711,1763795478924,-500.0,0.00017316,2]
[394628712,1763795478934,-500.0,0.00017316,2]
[394628713,1763795478946,-500.0,0.00017316,2]
[394628714,1763795478956,-500.0,0.00017316,2]
[394628715,1763795478967,-500.0,0.00017316,2]
[394628716,1763795479241,-273.51372905,0.00017316,2]
[394628717,1763795479263,-507.79,0.00017316,2]
[394628718,1763795479272,-1243.23,0.00017316,2]
[394628719,1763795479282,-500.0,0.00017316,2]
[394628720,1763795479291,-680.08,0.00017316,2]
[394628721,1763795479301,-500.0,0.00017316,2]
[394628722,1763795479310,-432.49618822,0.00017316,2]
[394628723,1763795479319,-917.45,0.00017316,2]
[394628724,1763795479329,-500.0,0.00017316,2]
[394628725,1763795479339,-500.0,0.00017316,2]
[394628726,1763795479348,-932.46,0.00017316,2]
[394628727,1763795479359,-500.0,0.00017316,2]
[394628728,1763795479368,-568.81189061,0.00017316,2]
[394628729,1763795479378,-500.0,0.00017316,2]
[394628730,1763795479388,-663.27,0.00017316,2]
[394628731,1763795479398,-500.0,0.00017316,2]
[394628732,1763795479408,-500.0,0.00017316,2]
[394628733,1763795479418,-500.0,0.00017316,2]
[394628734,1763795479429,-500.0,0.00017316,2]
[394628735,1763795479439,-500.0,0.00017316,2]
[394628736,1763795479448,-500.0,0.00017316,2]
[394628737,1763795479458,-826.19,0.00017316,2]
[394628738,1763795479468,-509.52011712,0.00017316,2]
[394628739,1763795479483,-500.0,0.00017316,2]
[394628740,1763795479493,-897.85,0.00017316,2]
[394628741,1763795479503,-500.0,0.00017316,2]
[394628742,1763795479512,-500.0,0.00017316,2]
[394628743,1763795479522,-1469.01,0.00017316,2]
[394628744,1763795479531,-512.82198827,0.00017316,2]
[394628745,1763795479540,-500.0,0.00017316,2]
[394628746,1763795479551,-844.01,0.00017316,2]
[394628747,1763795479560,-500.0,0.00017316,2]
[394628748,1763795479570,-500.0,0.00017316,2]
[394628749,1763795479578,-500.0,0.00017316,2]
[394628750,1763795479588,-1024.25,0.00017316,2]
[394628751,1763795479597,-500.0,0.00017316,2]
[394628752,1763795479607,-500.0,0.00017316,2]
[394628753,1763795479616,-500.0,0.00017316,2]
[394628754,1763795479625,-500.0,0.00017316,2]
[394628755,1763795479635,-524.44,0.00017316,2]
[394628756,1763795479645,-500.0,0.00017316,2]
[394628757,1763795479654,-820.43,0.00017316,2]
[394628758,1763795479663,-500.0,0.00017316,2]
[394628759,1763795479673,-541.59,0.00017316,2]
[394628760,1763795479682,-1080.81,0.00017316,2]
[394628761,1763795479691,-500.0,0.00017316,2]
[394628762,1763795479700,-583.58761396,0.00017316,2]
[394628763,1763795479710,-500.0,0.00017316,2]
[394628764,1763795479719,-1126.7,0.00017316,2]
[394628765,1763795479729,-500.0,0.00017316,2]
[394628766,1763795479739,-662.45,0.00017316,2]
[394628767,1763795479748,-755.62,0.00017316,2]
[394628768,1763795479757,-500.0,0.00017316,2]
[394628769,1763795479767,-500.0,0.00017316,2]
[394628770,1763795479780,-716.72,0.00017316,2]
[394628771,1763795479790,-948.49,0.00017316,2]
[394628772,1763795479799,-641.33,0.00017316,2]
[394628773,1763795479808,-500.0,0.00017316,2]
[394628774,1763795479819,-151.42441083,0.00017316,2]
[394628775,1763795479828,-500.0,0.00017316,2]
[394628776,1763795479837,-827.46,0.00017316,2]
[394628777,1763795479846,-500.0,0.00017316,2]
[394628778,1763795479856,-500.0,0.00017316,2]
[394628779,1763795479866,-500.0,0.00017316,2]
[394628780,1763795479875,-500.0,0.00017316,2]
[394628781,1763795479885,-500.0,0.00017316,2]
[394628782,1763795479894,-500.0,0.00017316,2]
[394628783,1763795479905,-533.78301805,0.00017316,2]
[394628784,1763795479915,-500.0,0.00017316,2]
[394628785,1763795479924,-1100.16,0.00017316,2]
[394628786,1763795479934,-533.0557995,0.00017316,2]
[394628787,1763795479943,-500.0,0.00017316,2]
[394628788,1763795479953,-524.07199104,0.00017316,2]
[394628789,1763795479962,-500.0,0.00017316,2]
[394628790,1763795479972,-578.37,0.00017316,2]
[394628791,1763795479983,-507.11,0.00017316,2]
[394628792,1763795479993,-722.23,0.00017316,2]
[394628793,1763795480002,-1162.4,0.00017316,2]
[394628794,1763795480012,-776.72,0.00017316,2]
[394628795,1763795480022,-512.50052497,0.00017316,2]
[394628796,1763795480031,-500.0,0.00017316,2]
[394628797,1763795480040,-1201.47,0.00017316,2]
[394628798,1763795480049,-611.79447895,0.00017316,2]
[394628799,1763795480060,-500.0,0.00017316,2]
[394628800,1763795480069,-500.0,0.00017316,2]
[394628801,1763795480079,-500.0,0.00017316,2]
[394628802,1763795480089,-500.0,0.00017316,2]
[394628803,1763795480101,-558.88,0.00017316,2]
[394628804,1763795480110,-1990.9,0.00017316,2]
[394628805,1763795480120,-923.81,0.00017316,2]
[394628806,1763795480129,-893.8,0.00017316,2]
[394628807,1763795480139,-500.0,0.00017316,2]
[394628808,1763795480149,-506.3248259,0.00017316,2]
[394628809,1763795480158,-500.0,0.00017316,2]
[394628810,1763795480168,-1021.95,0.00017316,2]
[394628811,1763795480180,-557.8,0.00017316,2]
[394628812,1763795480190,-1011.18,0.00017316,2]
[394628813,1763795480199,-500.0,0.00017316,2]
[394628814,1763795480209,-683.82,0.00017316,2]
[394628815,1763795480218,-500.0,0.00017316,2]
[394628816,1763795480228,-1050.83,0.00017316,2]
[394628817,1763795480239,-500.0,0.00017316,2]
[394628818,1763795480249,-635.13,0.00017316,2]
[394628819,1763795480259,-500.0,0.00017316,2]
[394628820,1763795480269,-529.46,0.00017316,2]
[394628821,1763795480279,-500.0,0.00017316,2]
[394628822,1763795480289,-1016.32,0.00017316,2]
[394628823,1763795480298,-502.96,0.00017316,2]
[394628824,1763795480308,-500.0,0.00017316,2]
[394628825,1763795480317,-486.32,0.00017316,2]
[394628826,1763795480327,-542.19,0.00017316,2]
[394628827,1763795480337,-1206.81,0.00017316,2]
[394628828,1763795480347,-961.0,0.00017316,2]
[394628829,1763795480358,-500.0,0.00017316,2]
[394628830,1763795480368,-419.65149247,0.00017316,2]
[394628831,1763795480377,-1134.04,0.00017316,2]
[394628832,1763795480387,-625.8,0.00017316,2]
[394628833,1763795480397,-1296.91,0.00017316,2]
[394628834,1763795480406,-622.87,0.00017316,2]
[394628835,1763795480416,-1505.41,0.00017316,2]
[394628836,1763795480426,-500.0,0.00017316,2]
[394628837,1763795480435,-500.0,0.00017316,2]
[394628838,1763795480445,-500.0,0.00017316,2]
[394628839,1763795480455,-500.0,0.00017316,2]
[394628840,1763795480464,-871.39,0.00017316,2]
[394628841,1763795480474,-500.0,0.00017316,2]
[394628842,1763795480483,-500.0,0.00017316,2]
[394628843,1763795480493,-500.0,0.00017316,2]
[394628844,1763795480502,-1422.18,0.00017316,2]
[394628845,1763795480512,-168.0,0.00017317,2]
[394628846,1763795480521,-1319.0,0.00017357,2]
[394628847,1763795480529,-609.784,0.00017357,2]
[394628848,1763795480544,-3435.0,0.00017357,2]
[394628849,1763795480553,-576.0,0.00017357,2]
[394628850,1763795480563,-1601.547,0.00017357,2]
[394628851,1763795480577,-822.0,0.00017357,2]
[394628852,1763795480587,-798.021,0.00017357,2]
[394628853,1763795480597,-1256.0,0.00017357,2]
[394628854,1763795480607,-500.86709969,0.00017373,2]
[394628855,1763795480617,-500.0,0.00017373,2]
[394628856,1763795480627,-1600.0,0.00017373,2]
[394628857,1763795480638,-1931.33294916,0.00017379,2]
[394628858,1763795480648,-168.0,0.00017391,2]
[394628859,1763795480658,-167.84247084,0.00017398,2]
[394628860,1763795480669,-1977.0,0.00017403,2]
[394628861,1763795480679,-500.0,0.00017415,2]
[394628862,1763795480701,-500.0,0.00017416,2]
[394628863,1763795480712,-150.0,0.00017417,2]
[394628864,1763795480723,-176.41993202,0.00017417,2]
[394628865,1763795480734,-230.64385222,0.00017417,2]
[394628866,1763795480743,-206.13665268,0.00017417,2]
[394628867,1763795480753,-253.32519065,0.00017417,2]
[394628868,1763795480763,-520.0,0.00017417,2]
[394628869,1763795480773,-618.0,0.00017417,2]
[394628870,1763795480783,-500.0,0.00017417,2]
[394628871,1763795480793,-252.91789624,0.00017417,2]
[394628872,1763795480803,-500.0,0.00017417,2]
[394628873,1763795480813,-726.0,0.00017417,2]
[394628874,1763795480823,-500.0,0.00017417,2]
[394628875,1763795480833,-155.60571846,0.00017417,2]
[394628876,1763795480843,-500.0,0.00017417,2]
[394628877,1763795480853,-168.76166191,0.00017417,2]
[394628878,1763795480863,-500.0,0.00017417,2]
[394628879,1763795480873,-500.0,0.00017417,2]
[394628880,1763795480883,-500.0,0.00017417,2]
[394628881,1763795480892,-595.27964616,0.00017417,2]
[394628882,1763795480903,-484.0,0.00017417,2]
[394628883,1763795480912,-500.0,0.00017417,2]
[394628884,1763795480923,-563.26,0.00017417,2]
[394628885,1763795480934,-500.0,0.00017417,2]
[394628886,1763795480944,-500.0,0.00017417,2]
[394628887,1763795480954,-773.87,0.00017417,2]
[394628888,1763795480964,-500.0,0.00017417,2]
[394628889,1763795480974,-500.0,0.00017417,2]
[394628890,1763795480984,-506.94,0.00017417,2]
[394628891,1763795480992,-828.42,0.00017417,2]
[394628892,1763795481002,-500.0,0.00017417,2]
[394628893,1763795481012,-500.0,0.00017417,2]
[394628894,1763795481022,-677.92,0.00017417,2]
[394628895,1763795481032,-999.38,0.00017417,2]
[394628896,1763795481041,-783.04,0.00017417,2]
[394628897,1763795481051,-977.89,0.00017417,2]
[394628898,1763795481061,-554.46,0.00017417,2]
[394628899,1763795481071,-500.0,0.00017417,2]
[394628900,1763795481080,-500.0,0.00017417,2]
[394628901,1763795481089,-500.0,0.00017417,2]
[394628902,1763795481102,-500.0,0.00017417,2]
[394628903,1763795481111,-166.66,0.00017441,2]
[394628904,1763795481120,-168.0,0.00017456,2]
[394628905,1763795481131,-161.26530317,0.00017473,2]
[394628906,1763795481141,-161.65590575,0.00017473,2]
[394628907,1763795481151,-502.35726483,0.00017473,2]
[394628908,1763795481162,-500.0,0.00017473,2]
[394628909,1763795481173,-2239.93976292,0.0001749,2]
[394628910,1763795481183,-1977.0,0.00017495,2]
[394628911,1763795481192,-500.0,0.00017499,2]
[394628912,1763795481202,-500.0,0.00017499,2]
[394628913,1763795481212,-500.0,0.00017499,2]
[394628914,1763795481221,-289425.14,0.000175,2]
[394628915,1763795481230,-426.67177017,0.00017507,2]
[394628916,1763795481240,-1001.67893318,0.00017521,2]
[394628917,1763795481249,-501.91002815,0.00017521,2]
[394628918,1763795481259,-1000.86791851,0.00017521,2]
[394628919,1763795481269,-1001.18787608,0.00017521,2]
[394628920,1763795481278,-501.168198,0.00017521,2]
[394628921,1763795481287,-501.18613092,0.00017521,2]
[394628922,1763795481297,-501.54413169,0.00017521,2]
[394628923,1763795481307,-608.48551232,0.00017521,2]
[394628924,1763795481316,-502.55984966,0.00017521,2]
[394628925,1763795481326,-168.0,0.00017526,2]
[394628926,1763795481336,-500.0,0.00017533,2]
[394628927,1763795481346,-591.0888069,0.00017534,2]
[394628928,1763795481355,-500.0,0.00017534,2]
[394628929,1763795481365,-500.0,0.00017534,2]
[394628930,1763795481374,-500.0,0.00017534,2]
[394628931,1763795481383,-500.0,0.00017534,2]
[394628932,1763795481393,-500.0,0.00017534,2]
[394628933,1763795481402,-362.14502396,0.00017534,2]
[394628934,1763795481412,-500.0,0.00017534,2]
[394628935,1763795481421,-500.0,0.00017534,2]
[394628936,1763795481432,-500.0,0.00017534,2]
[394628937,1763795481441,-929.65,0.00017534,2]
[394628938,1763795481452,-593.38640435,0.00017534,2]
[394628939,1763795481462,-500.0,0.00017534,2]
[394628940,1763795481472,-500.0,0.00017534,2]
[394628941,1763795481481,-1055.61,0.00017534,2]
[394628942,1763795481491,-500.0,0.00017534,2]
[394628943,1763795481500,-949.05,0.00017534,2]
[394628944,1763795481510,-500.0,0.00017534,2]
[394628945,1763795481519,-652.47,0.00017534,2]
[394628946,1763795481528,-853.84,0.00017534,2]
[394628947,1763795481537,-500.0,0.00017534,2]
[394628948,1763795481546,-500.0,0.00017534,2]
[394628949,1763795481556,-500.0,0.00017534,2]
[394628950,1763795481565,-931.55,0.00017534,2]
[394628951,1763795481574,-1047.79,0.00017534,2]
[394628952,1763795481584,-690.99,0.00017534,2]
[394628953,1763795481688,-581.99316107,0.00017534,2]
[394628954,1763795481697,-621.83,0.00017534,2]
[394628955,1763795481707,-500.0,0.00017534,2]
[394628956,1763795481716,-500.0,0.00017534,2]
[394628957,1763795481726,-880.46,0.00017534,2]
[394628958,1763795481737,-500.0,0.00017534,2]
[394628959,1763795481746,-500.0,0.00017534,2]
[394628960,1763795481758,-367.32268768,0.00017534,2]
[394628961,1763795481777,-500.0,0.00017534,2]
[394628962,1763795481788,-500.0,0.00017534,2]
[394628963,1763795481798,-500.0,0.00017534,2]
[394628964,1763795481807,-500.0,0.00017534,2]
[394628965,1763795481817,-500.0,0.00017534,2]
[394628966,1763795481826,-500.0,0.00017534,2]
[394628967,1763795481835,-500.0,0.00017534,2]
[394628968,1763795481844,-922.69,0.00017534,2]
[394628969,1763795481854,-500.0,0.00017534,2]
[394628970,1763795481863,-500.0,0.00017534,2]
[394628971,1763795481872,-1154.65,0.00017534,2]
[394628972,1763795481881,-500.0,0.00017534,2]
[394628973,1763795481891,-500.0,0.00017534,2]
[394628974,1763795481901,-500.0,0.00017534,2]
[394628975,1763795481910,-928.41,0.00017534,2]
[394628976,1763795481919,-500.0,0.00017534,2]
[394628977,1763795481928,-500.0,0.00017534,2]
[394628978,1763795481937,-399.1608166,0.00017534,2]
[394628979,1763795481946,-753.82,0.00017534,2]
[394628980,1763795481956,-500.0,0.00017534,2]
[394628981,1763795481965,-500.0,0.00017534,2]
[394628982,1763795481974,-500.0,0.00017534,2]
[394628983,1763795481987,-500.0,0.00017534,2]
[394628984,1763795481996,-678.17,0.00017534,2]
[394628985,1763795482005,-500.0,0.00017534,2]
[394628986,1763795482015,-500.0,0.00017534,2]
[394628987,1763795482024,-500.0,0.00017534,2]
[394628988,1763795482034,-571.38,0.00017534,2]
[394628989,1763795482043,-1167.28,0.00017534,2]
[394628990,1763795482054,-816.49,0.00017534,2]
[394628991,1763795482063,-609.46,0.00017534,2]
[394628992,1763795482072,-500.0,0.00017534,2]
[394628993,1763795482082,-1508.97,0.00017534,2]
[394628994,1763795482091,-500.0,0.00017534,2]
[394628995,1763795482105,-990.34,0.00017534,2]
[394628996,1763795482114,-545.88,0.00017534,2]
[394628997,1763795482123,-500.0,0.00017534,2]
[394628998,1763795482132,-543.02,0.00017534,2]
[394628999,1763795482143,-646.95,0.00017534,2]
[394629000,1763795482152,-500.0,0.00017534,2]
[394629001,1763795482161,-500.0,0.00017534,2]
[394629002,1763795482172,-500.0,0.00017534,2]
[394629003,1763795482181,-669.39,0.00017534,2]
[394629004,1763795482191,-500.0,0.00017534,2]
[394629005,1763795482200,-500.0,0.00017534,2]
[394629006,1763795482210,-796.52,0.00017534,2]
[394629007,1763795482219,-549.37,0.00017534,2]
[394629008,1763795482228,-991.62,0.00017534,2]
[394629009,1763795482238,-500.0,0.00017534,2]
[394629010,1763795482248,-633.17,0.00017534,2]
[394629011,1763795482257,-500.0,0.00017534,2]
[394629012,1763795482267,-500.0,0.00017534,2]
[394629013,1763795482276,-751.7,0.00017534,2]
[394629014,1763795482286,-746.32,0.00017534,2]
[394629015,1763795482295,-1285.18,0.00017534,2]
[394629016,1763795482304,-500.0,0.00017534,2]
[394629017,1763795482314,-500.0,0.00017534,2]
[394629018,1763795482323,-500.0,0.00017534,2]
[394629019,1763795482333,-500.0,0.00017534,2]
[394629020,1763795482342,-663.91,0.00017534,2]
[394629021,1763795482351,-652.22,0.00017534,2]
[394629022,1763795482360,-1913.84,0.00017534,2]
[394629023,1763795482370,-409.73155124,0.00017534,2]
[394629024,1763795482379,-820.04,0.00017534,2]
[394629025,1763795482389,-779.07,0.00017534,2]
[394629026,1763795482398,-500.0,0.00017534,2]
[394629027,1763795482406,-710.26,0.00017534,2]
[394629028,1763795482416,-500.0,0.00017534,2]
[394629029,1763795482425,-972.58,0.00017534,2]
[394629030,1763795482435,-500.0,0.00017534,2]
[394629031,1763795482444,-500.0,0.00017534,2]
[394629032,1763795482453,-1150.96,0.00017534,2]
[394629033,1763795482462,-500.0,0.00017534,2]
[394629034,1763795482472,-500.0,0.00017534,2]
[394629035,1763795482481,-500.0,0.00017534,2]
[394629036,1763795482491,-500.0,0.00017534,2]
[394629037,1763795482499,-500.0,0.00017534,2]
[394629038,1763795482508,-500.0,0.00017534,2]
[394629039,1763795482518,-835.25,0.00017534,2]
[394629040,1763795482527,-783.43,0.00017534,2]
[394629041,1763795482536,-500.0,0.00017534,2]
[394629042,1763795482545,-500.0,0.00017534,2]
[394629043,1763795482554,-555.01,0.00017534,2]
[394629044,1763795482563,-500.0,0.00017534,2]
[394629045,1763795482572,-500.0,0.00017534,2]
[394629046,1763795482582,-567.49,0.00017534,2]
[394629047,1763795482591,-500.0,0.00017534,2]
[394629048,1763795482600,-500.0,0.00017534,2]
[394629049,1763795482610,-500.0,0.00017534,2]
[394629050,1763795482619,-862.12,0.00017534,2]
[394629051,1763795482628,-712.13,0.00017534,2]
[394629052,1763795482637,-882.47,0.00017534,2]
[394629053,1763795482646,-500.0,0.00017534,2]
[394629054,1763795482655,-500.0,0.00017534,2]
[394629055,1763795482664,-930.74,0.00017534,2]
[394629056,1763795482674,-500.0,0.00017534,2]
[394629057,1763795482683,-500.0,0.00017534,2]
[394629058,1763795482692,-500.0,0.00017534,2]
[394629059,1763795482701,-986.57,0.00017534,2]
[394629060,1763795482710,-500.0,0.00017534,2]
[394629061,1763795482719,-684.09,0.00017534,2]
[394629062,1763795482727,-622.4,0.00017534,2]
[394629063,1763795482738,-500.0,0.00017534,2]
[394629064,1763795482747,-500.0,0.00017534,2]
[394629065,1763795482756,-636.78,0.00017534,2]
[394629066,1763795482765,-903.87,0.00017534,2]
[394629067,1763795482775,-552.67,0.00017534,2]
[394629068,1763795482784,-650.37,0.00017534,2]
[394629069,1763795482794,-500.0,0.00017534,2]
[394629070,1763795482804,-356.9888843,0.00017534,2]
[394629071,1763795482815,-949.19,0.00017534,2]
[394629072,1763795482824,-500.0,0.00017534,2]
[394629073,1763795482834,-511.73,0.00017534,2]
[394629074,1763795482843,-500.0,0.00017534,2]
[394629075,1763795482852,-1022.1,0.00017534,2]
[394629076,1763795482861,-500.0,0.00017534,2]
[394629077,1763795482870,-596.89,0.00017534,2]
[394629078,1763795482880,-643.32279524,0.00017534,2]
[394629079,1763795482889,-840.6,0.00017534,2]
[394629080,1763795482898,-906.66,0.00017534,2]
[394629081,1763795482907,-500.0,0.00017534,2]
[394629082,1763795482917,-683.84,0.00017534,2]
[394629083,1763795482926,-802.44,0.00017534,2]
[394629084,1763795482935,-500.0,0.00017534,2]
[394629085,1763795482944,-500.0,0.00017534,2]
[394629086,1763795482954,-500.0,0.00017534,2]
[394629087,1763795482964,-500.0,0.00017534,2]
[394629088,1763795482973,-500.0,0.00017534,2]
[394629089,1763795482984,-500.0,0.00017534,2]
[394629090,1763795482994,-1663.26,0.00017534,2]
[394629091,1763795483003,-500.0,0.00017534,2]
[394629092,1763795483012,-590.17,0.00017534,2]
[394629093,1763795483022,-500.0,0.00017534,2]
[394629094,1763795483032,-500.0,0.00017534,2]
[394629095,1763795483041,-710.85,0.00017534,2]
[394629096,1763795483050,-642.27,0.00017534,2]
[394629097,1763795483059,-878.89,0.00017534,2]
[394629098,1763795483069,-500.0,0.00017534,2]
[394629099,1763795483079,-500.0,0.00017534,2]
[394629100,1763795483088,-500.0,0.00017534,2]
[394629101,1763795483101,-554.72,0.00017534,2]
[394629102,1763795483110,-500.0,0.00017534,2]
[394629103,1763795483119,-500.0,0.00017534,2]
[394629104,1763795483129,-500.0,0.00017534,2]
[394629105,1763795483138,-571.32,0.00017534,2]
[394629106,1763795483147,-664.81,0.00017534,2]
[394629107,1763795483156,-373.96420704,0.00017534,2]
[394629108,1763795483166,-500.0,0.00017534,2]
[394629109,1763795483175,-500.0,0.00017534,2]
[394629110,1763795483185,-500.0,0.00017534,2]
[394629111,1763795483194,-500.0,0.00017534,2]
[394629112,1763795483204,-571.23,0.00017534,2]
[394629113,1763795483213,-1071.02,0.00017534,2]
[394629114,1763795483222,-907.63,0.00017534,2]
[394629115,1763795483231,-500.0,0.00017534,2]
[394629116,1763795483241,-500.0,0.00017534,2]
[394629117,1763795483251,-500.0,0.00017534,2]
[394629118,1763795483261,-500.0,0.00017534,2]
[394629119,1763795483270,-1282.27,0.00017534,2]
[394629120,1763795483281,-510.31,0.00017534,2]
[394629121,1763795483290,-500.0,0.00017534,2]
[394629122,1763795483299,-500.0,0.00017534,2]
[394629123,1763795483309,-551.38,0.00017534,2]
[394629124,1763795483319,-500.0,0.00017534,2]
[394629125,1763795483328,-500.0,0.00017534,2]
[394629126,1763795483337,-500.0,0.00017534,2]
[394629127,1763795483347,-500.0,0.00017534,2]
[394629128,1763795483356,-500.0,0.00017534,2]
[394629129,1763795483366,-4611.01,0.00017534,2]
[394629130,1763795483375,-573.04796567,0.00017534,2]
[394629131,1763795483385,-559.84,0.00017534,2]
[394629132,1763795483395,-500.0,0.00017534,2]
[394629133,1763795483404,-500.0,0.00017534,2]
[394629134,1763795483414,-731.85,0.00017534,2]
[394629135,1763795483423,-500.0,0.00017534,2]
[394629136,1763795483432,-500.0,0.00017534,2]
[394629137,1763795483442,-921.22,0.00017534,2]
[394629138,1763795483451,-500.0,0.00017534,2]
[394629139,1763795483460,-500.0,0.00017534,2]
[394629140,1763795483469,-538.25,0.00017534,2]
[394629141,1763795483479,-1314.18,0.00017534,2]
[394629142,1763795483489,-564.41,0.00017534,2]
[394629143,1763795483499,-500.0,0.00017534,2]
[394629144,1763795483508,-745.5,0.00017534,2]
[394629145,1763795483517,-1084.77,0.00017534,2]
[394629146,1763795483526,-500.0,0.00017534,2]
[394629147,1763795483535,-500.0,0.00017534,2]